bitfinex/quotes_ETHUSD_20260119
["timestamp","ask_amount","ask_price","bid_price","bid_amount"]
[1768782878950,11.89032924,3206.1,3203.8,0.43]
[1768782879443,11.89032924,3206.1,3203.9,0.43]
[1768782880156,11.89032924,3206.1,3203.7,1.86501035]
[1768782880157,11.89032924,3206.1,3203.7,2.29501035]
[1768782880456,11.76232924,3205.8,3203.7,2.29501035]
[1768782880662,11.89032924,3205.8,3203.7,2.29501035]
[1768782880821,11.89032924,3205.8,3203.7,1.86501035]
[1768782881025,11.89032924,3205.8,3203.7,2.29501035]
[1768782881026,0.449,3205.7,3203.7,2.29501035]
[1768782881229,6.23849776,3205.9,3203.8,12.40712685]
[1768782881462,3.11924888,3205.9,3203.8,12.40712685]
[1768782881635,3.11980574,3206.4,3204.0,12.40712685]
[1768782881636,9.35657922,3206.3,3204.0,12.40712685]
[1768782881842,12.47543896,3206.3,3204.0,12.40712685]
[1768782882043,9.35657922,3206.3,3204.0,12.40712685]
[1768782882243,24.2377682,3206.3,3204.0,12.40712685]
[1768782882450,11.76232924,3206.2,3204.1,0.43]
[1768782882627,11.76232924,3206.2,3203.9,2.71877008]
[1768782882825,11.76232924,3206.0,3203.4,12.40712685]
[1768782883032,11.76232924,3205.8,3203.5,3.55152313]
[1768782883338,0.128,3205.5,3203.6,0.43]
[1768782883551,11.89032924,3205.5,3203.6,0.43]
[1768782883729,11.76232924,3205.5,3203.6,0.03121488]
[1768782883934,11.76232924,3205.5,3203.6,1.24383417]
[1768782884139,11.76232924,3205.5,3203.3,0.002]
[1768782884345,0.449,3205.9,3203.3,0.002]
[1768782884346,11.76232924,3205.3,3203.3,0.002]
[1768782884547,11.76232924,3205.1,3203.3,0.002]
[1768782884834,11.76232924,3204.9,3203.3,0.002]
[1768782885666,0.577,3205.0,3202.2,12.83712685]
[1768782885667,11.76232924,3204.3,3202.2,12.83712685]
[1768782885852,11.76232924,3204.3,3202.2,12.40712685]
[1768782886164,0.128,3204.1,3201.7,12.40912685]
[1768782886465,11.89032924,3204.1,3202.1,3.12294641]
[1768782886665,9.36358812,3203.9,3201.9,3.12314563]
[1768782886868,0.93635881,3203.8,3202.0,0.66763846]
[1768782887196,0.93635881,3203.8,3202.0,1.09763846]
[1768782887493,0.93635881,3203.8,3202.0,0.66763846]
[1768782887632,0.93635881,3203.8,3201.7,15.5324559]
[1768782887633,11.76232924,3203.7,3201.7,0.002]
[1768782887867,11.89032924,3203.7,3201.7,0.002]
[1768782888602,9.36446496,3203.6,3201.7,0.002]
[1768782888796,21.1267942,3203.6,3201.7,0.002]
[1768782888962,0.38230216,3203.5,3201.7,0.002]
[1768782889165,6.24297664,3203.6,3201.7,12.40912685]
[1768782889382,9.36446496,3203.6,3201.8,0.43]
[1768782889603,9.36446496,3203.6,3201.7,12.83912685]
[1768782889796,9.36446496,3203.6,3201.7,0.432]
[1768782889998,9.36446496,3203.6,3201.7,0.002]
[1768782890290,6.24297664,3203.6,3201.7,12.40912685]
[1768782890699,3.12148832,3203.6,3201.9,12.40712685]
[1768782891300,6.24297664,3203.6,3202.0,0.43]
[1768782891796,6.24297664,3203.6,3201.7,0.002]
[1768782891797,11.89032924,3203.5,3201.7,0.002]
[1768782892698,6.24336642,3203.4,3201.7,0.002]
[1768782893005,6.24336642,3203.4,3201.7,12.50591376]
[1768782893294,6.24336642,3203.4,3201.7,0.002]
[1768782893500,9.36504963,3203.4,3201.7,0.432]
[1768782893659,9.36504963,3203.4,3201.7,0.002]
[1768782893959,0.93650496,3203.3,3201.7,0.002]
[1768782894160,6.24336642,3203.4,3201.7,0.002]
[1768782894565,9.36504963,3203.4,3201.7,0.002]
[1768782894767,3.12168321,3203.4,3201.7,0.002]
[1768782894998,11.93942577,3203.3,3201.7,0.002]
[1768782896209,11.93942577,3203.1,3201.7,0.002]
[1768782896511,12.06742577,3203.4,3201.7,0.002]
[1768782896821,9.36621915,3203.0,3201.7,0.002]
[1768782897106,6.2441461,3203.0,3201.7,0.002]
[1768782897323,24.42771797,3203.0,3201.7,0.002]
[1768782897483,21.30564492,3203.0,3201.7,0.002]
[1768782897816,12.38942577,3202.9,3201.0,3.12402374]
[1768782898022,12.38942577,3202.9,3200.7,16.05822957]
[1768782898314,11.93942577,3202.7,3200.4,12.50391376]
[1768782898720,6.24453602,3202.8,3201.0,6.24803117]
[1768782898921,3.12226801,3202.8,3201.1,14.37910825]
[1768782899132,3.12142755,3203.7,3201.1,14.37910825]
[1768782899133,3.12148832,3203.6,3201.1,14.37910825]
[1768782899314,9.81446496,3203.6,3202.0,0.002]
[1768782899514,6.69297664,3203.6,3202.0,0.002]
[1768782899715,0.001,3203.3,3202.0,0.002]
[1768782900335,11.94042577,3203.3,3202.0,0.002]
[1768782900492,11.94042577,3203.3,3201.6,0.002]
[1768782900493,11.93942577,3203.1,3201.6,0.002]
[1768782901021,11.93942577,3202.7,3200.4,12.50591376]
[1768782901365,11.93942577,3202.3,3200.4,3.12653056]
[1768782901494,0.45,3202.3,3200.4,12.50391376]
[1768782901696,0.45,3202.3,3199.3,12.50391376]
[1768782901697,11.93942577,3202.2,3199.3,12.50391376]
[1768782901945,11.93942577,3201.9,3199.7,12.50391376]
[1768782902091,0.45,3202.3,3200.1,12.50391376]
[1768782902297,12.38942577,3202.3,3200.1,12.50391376]
[1768782902521,11.93942577,3201.8,3199.6,12.93391376]
[1768782902708,0.128,3201.9,3199.6,0.43]
[1768782902709,11.93942577,3201.4,3199.6,0.43]
[1768782902909,11.93942577,3201.2,3199.6,0.43]
[1768782903245,12.94492392,3201.3,3198.3,12.50391376]
[1768782903246,11.93942577,3201.0,3198.3,12.50391376]
[1768782903445,11.93942577,3200.7,3198.4,13.75430514]
[1768782903596,11.93942577,3200.7,3198.4,16.88085051]
[1768782903797,11.93942577,3200.7,3198.4,1.25039138]
[1768782904029,11.93942577,3200.5,3198.1,3.12679154]
[1768782904328,19.19238588,3201.3,3197.3,12.50391376]
[1768782904329,11.93942577,3199.8,3197.3,12.50391376]
[1768782904525,12.06742577,3199.3,3196.7,12.50391376]
[1768782904725,12.06742577,3199.3,3196.8,3.1281218]
[1768782904916,12.06742577,3199.3,3196.7,12.50391376]
[1768782904917,11.93942577,3198.9,3196.9,1.56320356]
[1768782905115,11.93942577,3198.7,3196.9,1.56320356]
[1768782905327,0.45,3198.8,3195.3,12.50391376]
[1768782905328,11.93942577,3198.3,3195.3,12.50391376]
[1768782905517,0.45,3198.8,3195.9,3.12892261]
[1768782905518,12.06742577,3198.2,3195.9,3.12892261]
[1768782905832,6.84088154,3198.5,3195.1,12.50391376]
[1768782905833,11.93942577,3197.8,3195.1,12.50391376]
[1768782906132,11.93942577,3198.4,3195.9,12.50391376]
[1768782906332,11.93942577,3198.4,3195.3,3.12957662]
[1768782906333,11.93942577,3199.1,3196.8,12.50391376]
[1768782906583,3.12578144,3199.2,3197.0,12.50391376]
[1768782906735,11.93942577,3200.4,3197.0,12.50391376]
[1768782907029,3.12440439,3200.7,3197.2,12.50391376]
[1768782907030,11.93942577,3200.2,3197.2,12.50391376]
[1768782907231,11.93942577,3200.2,3197.1,9.3835038]
[1768782907232,11.93942577,3200.2,3197.3,12.50391376]
[1768782907407,11.93942577,3199.8,3197.3,12.50391376]
[1768782907731,11.93942577,3199.9,3197.4,13.75430514]
[1768782908509,6.6994141,3200.3,3197.4,13.75430514]
[1768782908713,11.93942577,3200.2,3197.4,13.75430514]
[1768782908901,9.82412115,3200.3,3196.7,12.50391376]
[1768782908902,11.93942577,3199.8,3196.7,12.50391376]
[1768782909105,12.06742577,3199.6,3197.2,3.12773476]
[1768782909328,12.06742577,3199.4,3196.7,12.50391376]
[1768782909525,12.06742577,3199.4,3196.8,0.431]
[1768782910141,12.06742577,3199.4,3195.6,6.88552613]
[1768782910366,12.06742577,3199.4,3196.2,3.12866098]
[1768782910367,12.06742577,3198.7,3196.2,3.12866098]
[1768782910507,12.06742577,3198.5,3196.2,0.431]
[1768782910914,9.37968984,3198.4,3196.0,12.50391376]
[1768782911246,6.25312656,3198.4,3196.2,6.25738239]
[1768782911409,6.25312656,3198.4,3196.3,12.50391376]
[1768782911608,6.25312656,3198.4,3196.4,1.87612962]
[1768782912342,3.12581478,3199.2,3196.6,12.50591376]
[1768782912644,9.37678088,3199.4,3196.6,12.50591376]
[1768782912855,0.93767809,3199.3,3196.8,12.50391376]
[1768782913065,9.37734432,3199.2,3196.9,6.25606054]
[1768782913670,0.93767809,3199.3,3197.1,12.50391376]
[1768782913671,6.25144961,3199.3,3197.1,12.50391376]
[1768782913865,6.25144961,3199.3,3197.2,0.431]
[1768782914161,6.25144961,3199.3,3197.3,1.29349138]
[1768782914725,3.12568374,3199.3,3197.3,13.79740514]
[1768782914951,0.451,3199.6,3197.3,13.79740514]
[1768782915151,0.451,3200.2,3197.5,12.50391376]
[1768782915765,0.451,3200.2,3197.7,12.50391376]
[1768782915934,0.451,3200.2,3197.9,12.50391376]
[1768782916132,3.124311,3200.8,3197.9,12.50391376]
[1768782916133,11.89260752,3201.5,3198.2,12.50391376]
[1768782916440,0.451,3201.4,3198.4,12.50391376]
[1768782916631,12.06742577,3201.3,3198.4,12.50391376]
[1768782916838,12.06742577,3201.3,3198.3,0.431]
[1768782916839,11.93942577,3201.3,3198.5,13.79740514]
[1768782917137,9.37148568,3201.2,3198.6,6.25273556]
[1768782917337,9.37148568,3201.2,3198.6,21.8830171]
[1768782917564,6.24765712,3201.2,3198.7,6.88552613]
[1768782917765,6.24765712,3201.2,3198.6,12.50547112]
[1768782917766,6.24765712,3201.2,3198.8,12.50391376]
[1768782917970,0.62476571,3201.1,3198.9,1.68139138]
[1768782918338,0.62476571,3201.1,3198.5,4.41993333]
[1768782918339,11.93942577,3201.0,3198.5,4.41993333]
[1768782918538,0.62476571,3201.1,3198.5,3.12644195]
[1768782918539,12.06742577,3200.9,3198.5,3.12644195]
[1768782918751,12.06742577,3200.9,3198.5,9.37937301]
[1768782918752,11.93942577,3200.9,3198.5,9.37937301]
[1768782918974,0.62476571,3201.1,3198.6,12.50391376]
[1768782919276,9.37207122,3201.0,3198.7,18.75645384]
[1768782919475,6.24804748,3201.0,3198.8,12.50391376]
[1768782919655,6.9353288,3201.0,3198.9,14.69218615]
[1768782920275,0.451,3201.4,3198.9,14.69218615]
[1768782920473,9.37119294,3201.3,3198.9,14.69218615]
[1768782920772,6.24746196,3201.3,3198.9,14.69218615]
[1768782921141,6.24746196,3201.3,3199.1,12.50391376]
[1768782921336,6.24746196,3201.3,3199.3,12.50391376]
[1768782921597,6.24746196,3201.3,3199.5,12.50391376]
[1768782921782,6.24746196,3201.3,3199.4,1.29349138]
[1768782921783,9.82219294,3201.3,3199.0,6.25195372]
[1768782921957,9.82219294,3201.3,3199.0,6.68295372]
[1768782922155,12.94592392,3201.3,3199.0,6.68295372]
[1768782922356,9.82219294,3201.3,3199.1,2.13751399]
[1768782922560,9.82219294,3201.3,3199.2,0.431]
[1768782922561,12.94592392,3201.3,3199.2,0.431]
[1768782922758,9.82219294,3201.3,3199.2,0.431]
[1768782922956,12.94592392,3201.3,3199.2,0.431]
[1768782923163,9.82219294,3201.3,3199.3,6.25136748]
[1768782923480,0.98221929,3201.2,3199.4,0.98081188]
[1768782923675,3.12382856,3201.2,3199.4,0.98081188]
[1768782923883,3.12382856,3201.2,3199.4,13.50466627]
[1768782924243,6.24668144,3201.7,3199.4,13.50466627]
[1768782924487,6.24668144,3201.7,3199.8,12.52585439]
[1768782924488,3.12334072,3201.7,3199.8,12.52585439]
[1768782924659,0.451,3202.0,3199.9,12.52385439]
[1768782924660,6.24615332,3202.0,3199.9,12.52385439]
[1768782924861,6.24615332,3202.0,3200.0,14.20743983]
[1768782925074,3.12276335,3202.3,3200.2,3.12480469]
[1768782925260,3.12276335,3202.3,3200.0,13.77643983]
[1768782925480,3.12276335,3202.3,3200.0,1.25258544]
[1768782925481,12.12300588,3202.2,3200.0,1.25258544]
[1768782925673,12.12300588,3202.0,3199.8,0.002]
[1768782925873,12.12300588,3201.8,3199.8,0.002]
[1768782926206,12.12300588,3201.8,3199.8,3.1271795]
[1768782926387,12.12300588,3201.8,3199.8,0.002]
[1768782926912,12.12300588,3201.6,3199.8,0.002]
[1768782927114,12.12300588,3201.4,3199.8,0.002]
[1768782927607,0.128,3201.3,3199.8,0.002]
[1768782927790,12.12300588,3201.4,3199.8,0.002]
[1768782928667,6.24707168,3201.5,3199.8,0.002]
[1768782928976,3.12353584,3201.5,3199.8,12.52585439]
[1768782929197,0.451,3201.9,3199.9,1.25258544]
[1768782929198,6.24653417,3201.8,3199.9,1.25258544]
[1768782929422,9.36977734,3201.8,3199.9,6.25015458]
[1768782929833,12.49306834,3201.8,3199.9,3.12504564]
[1768782930108,0.128,3202.7,3200.0,12.52385439]
[1768782930109,12.12300588,3202.7,3200.0,12.52385439]
[1768782930264,9.36563436,3203.2,3200.4,12.52385439]
[1768782930471,12.12300588,3203.1,3200.6,12.52385439]
[1768782931403,12.4882922,3203.0,3200.7,6.2486331]
[1768782931572,0.451,3202.9,3200.7,6.2486331]
[1768782931774,0.451,3202.9,3200.7,18.77248749]
[1768782931975,0.451,3202.9,3200.8,1.87724875]
[1768782932393,0.451,3202.9,3200.8,14.40110314]
[1768782932909,0.451,3202.9,3200.8,14.83210314]
[1768782933285,12.48907204,3202.8,3200.8,2.30824875]
[1768782933498,15.61134005,3202.8,3200.6,0.431]
[1768782933686,15.61134005,3202.8,3200.8,3.12421846]
[1768782934095,27.73434593,3202.8,3200.2,12.52385439]
[1768782934406,27.73434593,3202.8,3200.3,0.431]
[1768782934717,12.12300588,3202.7,3200.2,12.52385439]
[1768782934886,12.12300588,3202.7,3199.6,12.52385439]
[1768782935080,15.61134005,3202.8,3199.9,3.12503101]
[1768782935081,12.12300588,3202.5,3199.9,3.12503101]
[1768782935300,12.12300588,3202.3,3200.1,12.52385439]
[1768782935500,12.12300588,3202.3,3199.8,3.12719532]
[1768782935688,12.12300588,3202.3,3199.9,0.03125097]
[1768782935987,12.12300588,3202.3,3200.0,13.15221855]
[1768782936201,12.490632,3202.4,3200.2,12.52385439]
[1768782936202,3.122658,3202.4,3200.2,12.52385439]
[1768782936389,3.122658,3202.4,3200.4,12.52385439]
[1768782936581,3.122658,3202.4,3200.6,12.52385439]
[1768782936781,6.245316,3202.4,3200.7,14.24160749]
[1768782936976,3.122658,3202.4,3200.7,14.21036434]
[1768782937182,0.451,3202.9,3200.9,12.52385439]
[1768782937507,6.24453602,3202.8,3200.9,12.52385439]
[1768782938412,3.1209588,3204.2,3200.9,12.52385439]
[1768782938413,3.11730415,3207.9,3202.9,3.19338929]
[1768782938596,3.11730415,3207.9,3202.8,2.18853726]
[1768782938597,12.09627638,3207.8,3205.9,0.00277773]
[1768782938981,1.03631362,3208.0,3205.9,0.00277773]
[1768782938982,12.09627638,3207.4,3205.9,0.00277773]
[1768782939213,10.2251398,3208.0,3205.9,0.00277773]
[1768782939214,12.09627638,3207.2,3205.9,0.00277773]
[1768782939385,12.54727638,3207.2,3205.9,0.00277773]
[1768782939790,13.44342679,3207.2,3205.9,0.00277773]
[1768782940511,13.44342679,3207.2,3204.3,6.24161282]
[1768782941015,12.09627638,3206.4,3204.2,3.1208839]
[1768782941186,6.2381086,3206.1,3204.1,3.12100121]
[1768782941385,6.2381086,3206.1,3204.2,0.35520012]
[1768782941712,12.09627638,3206.0,3204.2,0.35520012]
[1768782941888,12.09627638,3205.8,3202.8,0.16]
[1768782942080,0.128,3205.5,3202.8,0.591]
[1768782942280,12.54727638,3205.4,3202.8,3.71325602]
[1768782942479,12.54727638,3205.4,3202.8,0.591]
[1768782942795,12.54727638,3205.4,3202.8,0.16]
[1768782942998,12.09627638,3205.2,3202.8,0.16]
[1768782943312,0.42251056,3205.3,3202.8,0.16]
[1768782943313,12.09627638,3204.8,3202.8,0.16]
[1768782943878,12.09627638,3204.8,3202.8,3.28219584]
[1768782944128,12.09627638,3204.8,3202.8,3.12219584]
[1768782944703,12.09627638,3204.8,3202.8,6.24446385]
[1768782944907,12.09627638,3204.8,3202.9,0.62444638]
[1768782945510,12.09627638,3204.8,3201.0,6.32015186]
[1768782945511,12.09627638,3204.4,3201.8,3.12322412]
[1768782945713,12.09627638,3204.4,3201.3,0.43]
[1768782945714,12.09627638,3204.2,3201.3,0.43]
[1768782945938,12.09627638,3204.2,3201.4,3.12362828]
[1768782946148,1.51390662,3205.2,3201.3,0.43]
[1768782946149,12.09627638,3207.5,3203.0,1.89336356]
[1768782946358,12.09627638,3207.5,3202.9,9.36651159]
[1768782946359,11.94727638,3208.1,3204.7,6.88552613]
[1768782946636,11.94727638,3208.1,3204.8,4.32340918]
[1768782946637,11.01055211,3208.1,3204.8,4.32340918]
[1768782946784,12.09627638,3207.9,3204.8,2.67500066]
[1768782946984,12.09627638,3207.7,3204.8,0.43]
[1768782947404,15.21387209,3207.6,3204.9,12.4808886]
[1768782947621,12.09627638,3207.5,3204.9,15.60111075]
[1768782947817,12.09627638,3207.5,3205.0,1.51570534]
[1768782948189,12.09627638,3207.5,3205.1,0.128]
[1768782948401,12.09627638,3207.5,3205.2,1.57793932]
[1768782948602,12.09627638,3207.5,3205.4,1.50946532]
[1768782949015,0.451,3208.0,3205.4,1.50946532]
[1768782949326,3.56822205,3208.0,3205.5,12.47855248]
[1768782949485,3.56822205,3208.0,3205.6,1.51931009]
[1768782949688,6.6854441,3208.0,3205.5,14.04902051]
[1768782949888,3.56822205,3208.0,3205.6,1.40490205]
[1768782950088,6.6854441,3208.0,3205.6,1.40490205]
[1768782950722,12.09627638,3207.9,3205.6,1.40490205]
[1768782950911,12.09627638,3207.9,3205.5,6.23927624]
[1768782951119,12.09727638,3207.2,3205.5,9.35891436]
[1768782951630,12.09727638,3207.2,3205.4,6.23947088]
[1768782951797,12.09727638,3207.2,3205.4,9.35920632]
[1768782952728,15.21527856,3207.2,3205.4,6.23947088]
[1768782952937,12.11449416,3207.0,3205.4,6.23947088]
[1768782953093,0.001,3207.2,3205.4,12.47894176]
[1768782953292,0.001,3207.2,3205.4,9.35920632]
[1768782954212,12.11549416,3207.2,3205.4,6.23947088]
[1768782954401,12.11549416,3207.2,3205.4,9.35920632]
[1768782954729,12.11549416,3207.2,3205.5,0.95298003]
[1768782955516,3.11808175,3207.1,3205.6,6.2390816]
[1768782955911,6.2361635,3207.1,3205.6,6.2390816]
[1768782956310,0.451,3207.1,3205.6,9.3586224]
[1768782956714,0.451,3207.1,3205.6,6.2390816]
[1768782956912,0.451,3207.1,3205.7,0.71920616]
[1768782957108,18.35153108,3207.2,3205.7,0.71920616]
[1768782957109,12.11549416,3207.2,3205.7,0.71920616]
[1768782957408,15.23349014,3207.2,3205.7,0.71920616]
[1768782957911,15.23349014,3207.2,3205.8,6.23869236]
[1768782958117,12.11549416,3207.2,3205.8,6.23869236]
[1768782958319,15.68450921,3207.2,3205.9,0.69578985]
[1768782958516,18.80252426,3207.2,3205.9,0.69578985]
[1768782959143,15.68450921,3207.2,3205.9,0.69578985]
[1768782959343,15.23355459,3207.2,3205.9,0.69578985]
[1768782959544,12.11549416,3207.2,3206.0,1.00538284]
[1768782959851,12.11449416,3207.1,3206.0,1.00538284]
[1768782960053,12.11449416,3207.1,3204.7,4.48697709]
[1768782960207,12.11449416,3207.1,3204.7,2.97908783]
[1768782960413,0.001,3207.2,3206.1,3.1190543]
[1768782960657,0.001,3207.2,3204.9,3.12019324]
[1768782960658,12.11449416,3207.1,3204.9,3.12019324]
[1768782960806,12.11449416,3207.1,3204.9,3.12020015]
[1768782961004,12.11449416,3207.1,3205.0,0.31202001]
[1768782961210,12.11449416,3207.1,3205.6,3.11951835]
[1768782961426,12.11449416,3207.1,3204.6,0.43]
[1768782961758,12.11449416,3207.1,3205.0,3.12006779]
[1768782961916,15.68361554,3207.1,3204.8,6.09938914]
[1768782962107,12.11449416,3207.0,3204.8,2.97908783]
[1768782962307,12.11449416,3207.0,3204.9,1.54607554]
[1768782963711,12.11449416,3207.0,3205.7,0.002]
[1768782963912,12.11449416,3206.8,3205.7,0.002]
[1768782966149,0.451,3207.1,3205.7,0.002]
[1768782966150,12.11449416,3206.6,3205.7,0.002]
[1768782966321,12.11449416,3206.6,3204.7,0.03120416]
[1768782966520,9.3554121,3206.7,3205.0,3.1201085]
[1768782966521,12.11449416,3206.4,3205.0,3.1201085]
[1768782966728,12.11449416,3206.2,3205.1,0.03119247]
[1768782966950,12.11449416,3206.2,3204.4,3.120669]
[1768782966951,12.11449416,3206.2,3204.5,3.15178117]
[1768782967250,12.11449416,3206.2,3203.8,3.12123911]
[1768782967460,12.11449416,3206.2,3203.6,3.40908783]
[1768782967461,21.46990626,3206.7,3204.2,2.97908783]
[1768782967757,12.11449416,3206.6,3204.3,0.45664375]
[1768782968041,3.11866521,3206.5,3204.4,3.12065656]
[1768782968243,12.11449416,3206.6,3204.4,14.07162868]
[1768782968445,12.11449416,3206.6,3204.5,2.97908783]
[1768782968636,18.35171733,3206.6,3204.6,0.43]
[1768782968807,12.11449416,3206.6,3204.7,0.34090878]
[1768782969043,3.56943629,3206.8,3204.7,3.31999661]
[1768782969347,0.451,3206.8,3204.8,1.5470372]
[1768782969507,12.11449416,3207.1,3204.9,4.54196131]
[1768782969716,12.11449416,3207.1,3205.2,2.97908783]
[1768782969916,3.11898797,3207.2,3205.2,2.97908783]
[1768782969917,0.001,3207.2,3205.3,0.45069409]
[1768782970223,0.001,3207.2,3205.4,15.45802959]
[1768782970427,0.001,3207.2,3205.5,0.43]
[1768782972033,0.001,3207.2,3205.6,9.3586224]
[1768782972235,0.001,3207.2,3205.6,15.45725103]
[1768782972449,0.001,3207.2,3205.7,1.5887251]
[1768782972960,0.001,3207.2,3205.8,0.43]
[1768782973142,12.11549416,3207.2,3205.9,0.03119248]
[1768782973344,12.11549416,3207.2,3205.6,6.2390816]
[1768782973345,12.11549416,3207.2,3205.7,0.46119248]
[1768782973649,12.11549416,3207.2,3205.3,0.45069409]
[1768782973650,12.11549416,3207.2,3205.5,3.11960341]
[1768782973952,12.11449416,3207.1,3205.6,0.38615477]
[1768782974155,12.11449416,3206.9,3205.6,0.38615477]
[1768782974371,12.11449416,3206.9,3205.6,0.03119443]
[1768782974524,3.1190378,3207.2,3205.6,9.7886224]
[1768782974525,0.001,3207.2,3205.6,9.7886224]
[1768782974719,0.001,3207.2,3205.6,12.9081632]
[1768782975036,3.11901525,3207.2,3205.6,9.7886224]
[1768782975233,0.001,3207.2,3205.6,12.9081632]
[1768782975464,0.001,3207.2,3205.7,1.72081632]
[1768782975465,18.35147891,3207.2,3205.7,1.72081632]
[1768782975765,18.35147891,3207.2,3205.8,0.43]
[1768782975766,12.11549416,3207.2,3205.8,0.43]
[1768782975926,0.001,3207.2,3205.8,0.43]
[1768782976130,0.001,3207.2,3205.9,6.23849776]
[1768782976321,12.11549416,3207.2,3205.9,3.11924888]
[1768782976526,12.11549416,3207.2,3205.9,0.44100652]
[1768782976755,12.11549416,3207.2,3205.8,3.11933154]
[1768782976956,12.11549416,3207.2,3205.7,3.11943947]
[1768782977125,0.001,3206.6,3205.7,3.11943402]
[1768782977330,0.001,3206.6,3205.4,3.12165969]
[1768782977331,0.001,3206.6,3205.8,3.11933522]
[1768782977549,12.47038284,3207.6,3205.8,3.11933522]
[1768782977550,3.11666879,3208.6,3205.8,3.11933522]
[1768782977857,0.128,3208.8,3205.8,3.11933522]
[1768782977858,12.11449416,3208.0,3205.9,0.74193352]
[1768782978241,3.11730415,3207.9,3206.0,12.47660636]
[1768782978747,3.11730415,3207.9,3206.0,21.02247844]
[1768782978951,15.23172517,3208.0,3206.0,12.47660636]
[1768782979261,12.11449416,3208.6,3206.3,11.66502367]
[1768782979467,15.23116777,3208.6,3206.5,11.66502367]
[1768782979966,15.23116417,3208.6,3206.5,11.66502367]
[1768782980168,18.34783418,3208.6,3206.5,11.66502367]
[1768782980474,18.34783418,3208.6,3206.6,21.0518951]
[1768782980659,15.23116417,3208.6,3206.6,24.13929547]
[1768782980860,0.452,3209.3,3206.6,24.13929547]
[1768782980861,6.23227696,3209.1,3206.8,11.66502367]
[1768782981061,12.11449416,3209.0,3206.9,0.431]
[1768782981372,12.11449416,3209.0,3206.7,2.41392955]
[1768782981666,12.11449416,3209.0,3206.8,0.431]
[1768782982349,12.11449416,3208.8,3206.8,3.5493558]
[1768782982758,12.11449416,3208.8,3206.6,3.11855096]
[1768782982968,12.11449416,3208.8,3206.6,3.54955096]
[1768782983274,12.11449416,3208.8,3206.6,0.431]
[1768782983479,11.84183143,3208.6,3206.7,0.35496351]
[1768782983676,0.128,3208.8,3206.7,0.35496351]
[1768782983677,11.84183143,3208.4,3206.7,0.35496351]
[1768782983881,11.84183143,3208.4,3206.2,0.431]
[1768782984090,11.84183143,3208.2,3206.2,0.431]
[1768782984398,0.452,3208.5,3205.9,0.31193352]
[1768782984399,11.84183143,3208.0,3205.9,0.31193352]
[1768782984541,11.84183143,3208.0,3205.9,6.23848386]
[1768782984945,11.84183143,3208.0,3205.9,3.11923498]
[1768782985176,11.84183143,3208.0,3205.9,6.23848386]
[1768782986379,21.1929148,3208.2,3206.0,11.66502367]
[1768782986580,14.95884408,3208.2,3206.1,14.0792242]
[1768782986880,3.11710981,3208.1,3206.1,14.0792242]
[1768782987081,11.84183143,3208.2,3206.1,14.0792242]
[1768782987290,3.69612981,3209.2,3206.5,11.66502367]
[1768782987291,11.84183143,3208.8,3206.5,11.66502367]
[1768782987447,9.34958577,3208.7,3206.6,1.59750237]
[1768782987784,11.84183143,3208.6,3206.7,0.431]
[1768782988160,6.23305388,3208.7,3206.7,12.09602367]
[1768782988161,3.11652694,3208.7,3206.7,12.09602367]
[1768782988361,6.23247116,3209.0,3206.8,9.35512035]
[1768782988550,11.84183143,3208.9,3206.8,6.2367469]
[1768782988745,9.34870674,3209.0,3206.9,0.62367469]
[1768782988746,11.84183143,3208.7,3206.9,0.62367469]
[1768782988974,11.84183143,3208.7,3206.9,1.05467469]
[1768782989484,11.84283143,3208.7,3206.9,1.05467469]
[1768782990499,11.84283143,3208.7,3207.0,12.47271592]
[1768782990653,18.07590965,3208.7,3207.0,6.23635796]
[1768782990862,11.84183143,3208.6,3207.1,1.47192751]
[1768782991248,11.84183143,3208.6,3207.1,0.431]
[1768782991463,11.84183143,3208.6,3206.3,3.11881718]
[1768782991666,11.84183143,3208.6,3206.4,0.431]
[1768782991984,11.84183143,3208.6,3206.9,3.11824161]
[1768782992485,6.2334424,3208.5,3206.6,9.35562726]
[1768782992675,6.2334424,3208.5,3206.7,2.14516509]
[1768782993391,3.1167212,3208.5,3206.7,2.14516509]
[1768782993559,6.2334424,3208.5,3206.7,2.14516509]
[1768782994188,11.84183143,3208.4,3206.8,0.431]
[1768782994374,11.84183143,3208.4,3206.9,9.35482863]
[1768782994562,11.84183143,3208.3,3207.0,0.97858286]
[1768782994897,11.84183143,3208.3,3207.1,0.431]
[1768782996280,3.11683834,3208.4,3207.1,0.431]
[1768782996281,3.11662407,3208.6,3207.1,0.431]
[1768782996759,6.23405388,3208.7,3207.2,6.23596906]
[1768782996960,6.23405388,3208.7,3207.3,0.66669691]
[1768782997709,11.84183143,3208.6,3207.3,0.66669691]
[1768782999002,6.2334424,3208.5,3207.3,0.66669691]
[1768782999298,12.03241265,3208.4,3207.1,0.431]
[1768782999661,12.03241265,3208.4,3207.3,3.11787335]
[1768783000063,12.03241265,3208.4,3207.1,3.54900186]
[1768783000064,12.03241265,3208.4,3207.1,3.54904469]
[1768783000363,12.03241265,3208.4,3207.1,3.54900967]
[1768783000604,12.03241265,3208.4,3207.1,0.431]
[1768783000926,12.03241265,3208.2,3206.2,3.12095702]
[1768783001418,12.03241265,3208.2,3206.3,0.431]
[1768783002718,12.03241265,3208.2,3206.2,6.23991404]
[1768783002897,12.03241265,3208.0,3206.5,3.11866521]
[1768783003216,12.03241265,3208.0,3207.0,0.002]
[1768783003385,12.03241265,3208.0,3206.2,0.002]
[1768783003592,12.03241265,3208.0,3206.2,0.433]
[1768783003894,12.03241265,3208.0,3206.2,0.002]
[1768783004106,12.03241265,3208.0,3205.9,0.002]
[1768783004328,12.16041265,3208.0,3205.9,0.002]
[1768783004486,12.16041265,3208.0,3205.9,0.03319248]
[1768783004894,12.03241265,3207.4,3206.0,0.03119151]
[1768783005119,12.48441265,3207.4,3206.0,0.03119151]
[1768783005328,12.48441265,3207.4,3205.9,0.002]
[1768783005629,12.03241265,3207.2,3205.9,0.002]
[1768783007001,18.26857615,3207.1,3205.9,0.002]
[1768783007299,12.03241265,3208.1,3205.9,11.67102367]
[1768783007502,12.03241265,3208.1,3205.9,12.15557225]
[1768783007503,6.23449803,3208.0,3205.9,12.15557225]
[1768783007810,12.03241265,3207.9,3205.9,11.67102367]
[1768783007999,12.03241265,3207.9,3206.0,1.16730237]
[1768783008400,12.03241265,3207.9,3206.0,12.83632604]
[1768783009009,12.03341265,3208.4,3206.2,11.66902367]
[1768783009227,12.03341265,3208.4,3206.3,12.10002367]
[1768783009228,3.1169155,3208.3,3206.3,12.10002367]
[1768783009417,12.03341265,3208.4,3206.5,11.66902367]